bitfinex/quotes_ETHUSD_20241122
["timestamp","ask_amount","ask_price","bid_price","bid_amount"]
[1732280683611,0.02243297,3336.1,3335.3,0.59963]
[1732280683911,1.16712703,3336.0,3335.3,0.59963]
[1732280684070,0.7674,3337.4,3335.4,0.3947]
[1732280684276,0.7674,3337.4,3335.0,0.60969]
[1732280684277,3.55,3337.2,3335.9,0.59952]
[1732280684474,0.02243297,3337.1,3336.5,0.59942]
[1732280684775,3.01904297,3337.1,3336.3,0.59945]
[1732280684972,1.2161811,3337.1,3336.2,0.59947]
[1732280685199,2.99716,3336.5,3335.8,0.59955]
[1732280685388,3.01967297,3336.4,3335.7,0.59957]
[1732280685585,0.73265103,3336.3,3335.8,0.59954]
[1732280686124,0.73265103,3336.3,3335.7,0.59956]
[1732280686392,0.73265103,3336.3,3335.4,0.59962]
[1732280686393,2.99751,3336.1,3335.4,0.59962]
[1732280686517,0.39769237,3336.0,3335.5,0.5996]
[1732280686716,0.39769237,3336.0,3335.4,0.59962]
[1732280686966,0.39769237,3336.0,3335.5,0.5996]
[1732280687316,0.39769237,3336.0,3335.6,0.59959]
[1732280687512,0.7758,3335.8,3335.0,0.5997]
[1732280687759,0.7758,3335.8,3334.0,3.0]
[1732280687760,6.53620029,3335.7,3335.1,0.59968]
[1732280688061,3.51583732,3335.3,3334.7,0.59975]
[1732280688224,0.02243297,3335.2,3334.7,0.59975]
[1732280688616,0.7758,3335.1,3334.5,0.59978]
[1732280688848,0.02243297,3335.0,3334.1,0.59985]
[1732280689148,3.02093297,3335.0,3334.1,0.59985]
[1732280689350,3.51583732,3334.9,3333.4,0.99468]
[1732280689561,0.02243297,3334.8,3334.1,0.59986]
[1732280689756,0.02243297,3334.8,3334.3,0.59982]
[1732280689971,3.51583732,3334.9,3334.3,0.59982]
[1732280690179,1.42945103,3335.1,3334.2,0.3947]
[1732280690328,0.7758,3335.6,3334.7,0.59973]
[1732280690533,0.02243297,3335.5,3334.7,0.59973]
[1732280690763,1.03120303,3335.4,3335.0,0.59969]
[1732280691037,0.7758,3335.6,3334.4,0.02998732]
[1732280691260,0.7758,3336.0,3335.2,0.59964]
[1732280691580,3.51583732,3335.3,3334.1,0.3947]
[1732280691872,3.51583732,3335.3,3334.8,0.59972]
[1732280692073,0.7758,3335.8,3335.4,0.59961]
[1732280692274,0.7758,3335.8,3334.4,0.3947]
[1732280692275,0.02243297,3335.7,3335.0,0.59968]
[1732280692443,6.53616029,3335.7,3335.0,0.59968]
[1732280692650,6.53616029,3335.7,3334.7,0.59973]
[1732280692651,4.02898503,3335.6,3334.9,0.59971]
[1732280692977,0.02243297,3335.5,3334.7,0.59973]
[1732280693272,0.75672553,3335.4,3334.8,0.59973]
[1732280693433,0.02243297,3335.3,3334.5,0.59978]
[1732280693637,0.02243297,3335.3,3334.4,0.3947]
[1732280693638,0.37773585,3335.2,3334.4,0.9945]
[1732280693839,0.37773585,3335.2,3334.8,0.59973]
[1732280694072,0.37773585,3335.2,3334.9,0.59971]
[1732280694246,0.37773585,3335.2,3334.4,0.3947]
[1732280694572,3.02089297,3335.1,3334.5,0.59977]
[1732280694868,3.02089297,3335.1,3334.2,0.59983]
[1732280694869,0.8288,3335.0,3334.2,0.59983]
[1732280695072,0.8288,3335.0,3334.0,0.3947]
[1732280695281,0.8288,3335.0,3334.7,0.59973]
[1732280695441,0.8288,3335.0,3334.5,0.59978]
[1732280697271,0.8288,3335.0,3334.1,0.59986]
[1732280697479,0.7955,3335.3,3334.1,0.02999172]
[1732280697683,0.7955,3335.3,3334.8,0.59971]
[1732280697973,0.7955,3335.3,3334.7,0.59975]
[1732280698147,0.7955,3335.3,3334.8,0.59972]
[1732280698582,0.81793297,3335.3,3334.8,0.59972]
[1732280698753,0.81793297,3335.3,3334.9,0.59971]
[1732280698936,3.0,3335.4,3334.2,0.789132]
[1732280698937,3.0,3335.9,3335.2,0.59966]
[1732280699141,0.8223,3335.8,3335.4,0.59962]
[1732280699485,0.8223,3335.8,3334.9,0.3947]
[1732280699486,1.77364873,3335.8,3335.7,0.59957]
[1732280699669,0.8223,3335.8,3335.7,0.59957]
[1732280699838,0.8223,3335.8,3335.6,0.59959]
[1732280700039,0.8223,3335.8,3335.4,0.59962]
[1732280700240,3.02031297,3335.7,3334.8,0.59972]
[1732280700436,0.3842613,3335.6,3334.7,0.59975]
[1732280700635,0.02243297,3335.7,3335.3,0.59964]
[1732280700871,3.02031297,3335.7,3335.1,0.59966]
[1732280701077,3.02031297,3335.7,3335.0,0.59968]
[1732280701280,3.70434427,3335.7,3335.1,0.59967]
[1732280701641,0.70646427,3335.7,3335.2,0.59965]
[1732280702163,3.70434427,3335.7,3335.1,0.59968]
[1732280702359,2.99806,3335.5,3334.8,1.19945]
[1732280702560,3.02063297,3335.4,3334.8,0.59972]
[1732280702784,0.8081,3335.2,3334.6,0.59975]
[1732280702953,0.8081,3335.2,3334.8,0.59972]
[1732280702954,0.83053297,3335.2,3334.8,0.59972]
[1732280703163,4.1893433,3335.2,3334.6,0.59975]
[1732280703449,0.02243297,3335.1,3334.8,0.59972]
[1732280703667,1.1909733,3335.2,3334.9,0.59971]
[1732280704474,0.8081,3335.2,3334.9,0.59971]
[1732280704785,0.8081,3335.2,3334.7,0.59974]
[1732280704990,0.8081,3335.2,3334.0,0.3947]
[1732280704991,3.80647,3335.2,3334.6,0.59976]
[1732280705171,3.80647,3335.2,3334.9,0.59971]
[1732280705172,0.83053297,3335.2,3334.9,0.59971]
[1732280705356,0.8081,3335.2,3335.0,0.89819]
[1732280705561,0.8081,3335.2,3335.1,0.59968]
[1732280705960,0.8081,3335.2,3335.0,0.2985]
[1732280706184,0.8081,3335.2,3335.0,0.89819]
[1732280706375,0.8081,3335.2,3334.9,0.2985]
[1732280706584,0.8081,3335.2,3334.8,0.59973]
[1732280706791,0.8081,3335.2,3334.9,0.59971]
[1732280707293,0.8081,3335.2,3334.6,0.89825]
[1732280707596,3.02085297,3335.1,3334.6,0.2985]
[1732280708450,0.55,3335.0,3334.6,0.2985]
[1732280708650,0.7574,3334.6,3332.8,0.02999177]
[1732280708853,3.82225,3334.0,3333.3,0.2985]
[1732280709083,3.82225,3334.0,3333.4,0.59998]
[1732280709084,1.07124515,3333.9,3333.4,0.59998]
[1732280709393,1.03374373,3333.9,3333.5,0.2985]
[1732280709589,0.03749871,3333.8,3333.5,0.2985]
[1732280709802,0.03749871,3333.8,3333.5,0.89846]
[1732280709970,0.8228,3334.0,3333.5,0.89846]
[1732280710152,0.8228,3334.0,3333.8,0.2985]
[1732280710355,1.20874485,3334.0,3333.4,0.59998]
[1732280710653,1.20874485,3334.0,3333.0,0.60005]
[1732280710856,2.99981,3333.6,3332.9,0.60006]
[1732280711075,0.31612447,3333.5,3332.9,0.60006]
[1732280711285,0.27861783,3333.4,3332.7,0.60011]
[1732280711554,0.27861783,3333.4,3332.5,0.6932]
[1732280711555,0.7719,3333.2,3332.5,0.60014]
[1732280711779,1.0112619,3333.1,3332.8,0.60009]
[1732280711949,1.25538285,3333.2,3332.6,0.60012]
[1732280711950,0.27873349,3333.0,3332.6,0.60012]
[1732280712149,0.80940912,3333.2,3332.6,0.60012]
[1732280712364,0.80940912,3333.2,3332.2,0.60018]
[1732280712607,3.00058,3332.7,3332.0,1.49896]
[1732280712888,3.77265,3332.5,3331.9,0.60025]
[1732280713096,3.77265,3332.5,3331.4,0.3947]
[1732280713097,3.00094,3332.3,3331.7,0.60028]
[1732280713259,0.03751977,3332.3,3331.4,0.60034]
[1732280713451,0.41480377,3332.3,3331.5,0.60033]
[1732280713646,3.41575377,3332.3,3331.6,0.60029]
[1732280713848,7.28853732,3332.5,3332.2,0.6002]
[1732280713849,0.7719,3332.5,3332.2,0.6002]
[1732280714052,2.99933,3334.1,3331.6,0.2985]
[1732280714053,0.44517465,3332.8,3331.6,0.2985]
[1732280714300,0.03751226,3332.7,3332.3,0.60018]
[1732280714447,1.21707465,3333.0,3332.0,0.6932]
[1732280714448,0.44517465,3333.0,3332.0,0.6932]
[1732280714655,0.03751024,3333.3,3332.8,0.60008]
[1732280714856,0.80940785,3333.4,3332.9,0.60007]
[1732280715102,0.7808,3333.9,3333.0,0.60006]
[1732280715280,0.7808,3333.9,3333.8,0.59991]
[1732280715496,0.7808,3334.3,3333.1,0.60004]
[1732280715801,0.7808,3334.3,3333.9,0.59988]
[1732280715998,0.7808,3334.3,3333.8,0.59991]
[1732280715999,0.03749521,3334.2,3333.6,0.59995]
[1732280716250,0.7808,3334.3,3334.1,0.59984]
[1732280716367,0.7808,3334.3,3334.2,0.59984]
[1732280716568,0.7808,3334.3,3334.0,0.59986]
[1732280716755,0.7808,3334.3,3333.8,0.59991]
[1732280716756,0.81829318,3334.3,3333.8,0.59991]
[1732280716957,0.81829318,3334.3,3334.0,0.59986]
[1732280717194,0.81829318,3334.3,3333.8,0.59991]
[1732280717357,0.81829318,3334.3,3333.3,0.59999]
[1732280717358,2.9994,3334.0,3333.3,0.59999]
[1732280717560,3.51583732,3334.1,3333.7,0.59993]
[1732280717855,0.7808,3334.3,3333.9,0.59989]
[1732280718101,4.54697585,3334.3,3333.5,0.59995]
[1732280718282,0.44552043,3334.2,3333.6,0.59994]
[1732280718594,6.55264746,3334.1,3333.4,0.59997]
[1732280718805,6.96015839,3334.1,3333.3,0.6]
[1732280719003,0.8329,3333.9,3333.3,0.6]
[1732280719301,3.03711138,3333.8,3333.1,0.60003]
[1732280719500,0.48299874,3333.8,3332.5,0.3947]
[1732280719701,0.8329,3333.9,3333.5,0.59996]
[1732280719885,1.61225547,3333.9,3333.5,0.59996]
[1732280720581,0.8329,3333.9,3333.8,0.59991]
[1732280720764,0.18717195,3334.3,3334.0,0.59988]
[1732280720969,0.44541126,3334.4,3334.2,0.59982]
[1732280721287,0.8452931,3334.5,3334.1,0.59985]
[1732280721490,0.8452931,3334.5,3334.0,0.59987]
[1732280721669,4.36113042,3334.5,3334.0,0.59987]
[1732280722309,4.36113042,3334.5,3333.8,0.5999]
[1732280722461,4.36113042,3334.5,3334.0,0.59986]
[1732280722667,4.36113042,3334.5,3333.5,0.3947]
[1732280722865,4.36113042,3334.5,3333.9,0.59989]
[1732280723097,4.36113042,3334.5,3333.2,0.60002]
[1732280723098,2.99923,3334.2,3333.2,0.60002]
[1732280723300,0.776,3334.0,3333.4,0.59997]
[1732280723610,0.03750117,3333.9,3333.2,0.60002]
[1732280723820,2.99977,3333.6,3333.1,0.2985]
[1732280724023,0.03750365,3333.5,3332.9,0.2985]
[1732280724184,0.7841,3333.4,3332.7,0.6001]
[1732280724384,0.03750799,3333.3,3332.7,0.6001]
[1732280724696,0.7841,3333.4,3332.4,0.6932]
[1732280724895,0.7841,3333.4,3332.9,0.60007]
[1732280725089,3.03760665,3333.3,3332.7,0.60011]
[1732280725411,3.03760665,3333.3,3332.6,0.60013]
[1732280725729,3.00012,3333.2,3332.5,0.60013]
[1732280725893,0.9553564,3333.1,3332.6,0.60012]
[1732280726096,0.7841,3333.4,3332.8,0.60009]
[1732280726308,0.82160768,3333.4,3332.3,0.2985]
[1732280726629,0.7841,3333.4,3333.0,0.60004]
[1732280726826,3.51583732,3333.7,3333.3,0.6]
[1732280726996,4.32263732,3333.7,3333.3,0.6]
[1732280727196,4.32263732,3333.7,3333.4,0.59998]
[1732280727532,4.32263732,3333.7,3333.2,0.60001]
[1732280727716,5.05490105,3333.7,3333.1,0.60003]
[1732280727891,8.09210469,3333.7,3333.1,0.60003]
[1732280728094,8.09210469,3333.7,3332.9,0.89857]
[1732280728095,8.05460105,3333.7,3332.9,0.2985]
[1732280728296,5.05490105,3333.7,3332.9,0.2985]
[1732280728619,8.09215527,3333.7,3332.9,0.2985]
[1732280728820,8.05465105,3333.7,3332.8,0.89859]
[1732280729125,2.99976,3333.6,3332.8,0.2985]
[1732280729527,2.99999,3333.4,3332.4,0.60016]
[1732280729690,4.67264224,3333.3,3332.4,0.60016]
[1732280729889,4.67264224,3333.3,3332.6,0.60011]
[1732280730193,4.33513732,3333.7,3332.8,0.60008]
[1732280730705,2.99986,3333.5,3332.6,0.60012]
[1732280730886,0.0375042,3333.6,3332.7,0.2985]
[1732280731091,0.8029,3333.4,3332.7,0.2985]
[1732280731307,3.00027,3333.1,3332.7,0.2985]
[1732280731506,0.03750924,3333.3,3332.7,0.2985]
[1732280731507,3.03785911,3333.0,3332.7,0.2985]
[1732280731708,3.00047,3332.9,3332.7,0.2985]
[1732280731932,3.03798093,3332.9,3332.2,0.2985]
[1732280732144,3.00072,3332.6,3332.2,0.2985]
[1732280732451,3.00093,3332.3,3331.8,0.2985]
[1732280732755,3.00086,3332.4,3331.8,0.2985]
[1732280732913,3.00094,3332.3,3331.8,0.2985]
[1732280733112,3.00112,3332.1,3331.8,0.2985]
[1732280733332,3.00112,3332.1,3330.8,0.41731126]
[1732280733333,4.28933732,3332.0,3330.8,0.41731126]
[1732280733567,0.03752418,3331.9,3330.8,0.3947]
[1732280733850,3.03886418,3331.9,3330.9,0.60042]
[1732280734035,3.0014,3331.8,3331.0,0.6004]
[1732280734221,3.00134,3331.9,3331.1,0.60038]
[1732280734425,0.7735,3332.0,3331.5,0.2]
[1732280734952,6.00107,3332.2,3331.5,0.2]
[1732280734953,3.00107,3332.2,3331.5,0.2]
[1732280735154,3.00117,3332.1,3331.5,0.4985]
[1732280735360,3.00117,3332.1,3331.5,0.2]
[1732280735656,3.00124,3332.0,3331.5,0.2]
[1732280735814,3.00139,3331.8,3331.5,0.2]
[1732280736149,3.60522308,3332.0,3331.5,0.2]
[1732280736150,0.8124,3331.6,3331.5,0.2]
[1732280736468,3.76322,3332.0,3331.5,0.2]
[1732280736633,3.00136,3331.9,3331.5,0.2]
[1732280736947,3.00147,3331.7,3331.5,0.2]
[1732280737112,3.00134,3331.9,3331.5,0.2]
[1732280737316,3.00154,3331.7,3331.5,0.2]
[1732280737517,3.301714,3331.6,3331.5,0.2]
[1732280737941,0.300154,3331.6,3331.5,0.2]
[1732280738144,3.00139,3331.8,3331.5,0.2]
[1732280738450,4.27783732,3332.0,3331.5,0.2]
[1732280738615,4.31535981,3332.0,3331.5,0.2]
[1732280738821,0.7701,3332.4,3331.5,0.5947]
[1732280739019,3.81963541,3332.8,3331.5,0.5947]
[1732280739020,3.00071,3332.6,3332.0,0.60023]
[1732280739338,3.00042,3332.9,3332.3,0.60018]
[1732280739520,1.070112,3333.1,3331.8,0.2985]
[1732280739718,3.00048,3332.8,3332.0,0.60023]
[1732280739919,3.49641849,3333.0,3332.2,0.99489]
[1732280740224,3.49641849,3333.0,3332.4,0.60015]
[1732280740443,1.070112,3333.1,3332.4,0.60015]
[1732280740635,3.0003,3333.0,3332.3,0.60017]
[1732280740842,3.00062,3332.7,3332.2,0.3947]
[1732280741045,0.03751155,3332.6,3332.2,0.99489]
[1732280741258,0.55,3332.7,3332.0,0.60022]
[1732280741568,3.03817359,3332.6,3332.1,0.60021]
[1732280741924,3.00111,3332.1,3331.6,0.3947]
[1732280742246,0.55,3332.3,3331.6,0.3947]
[1732280742577,0.55,3332.3,3331.5,0.2]
[1732280742578,3.0013,3331.9,3331.5,0.2]
[1732280742861,0.03752034,3331.8,3331.5,0.2]
[1732280743061,3.0013,3331.9,3331.5,0.2]
[1732280743222,0.03752065,3331.8,3331.5,0.2]
[1732280743425,3.00139,3331.8,3331.5,0.2]
[1732280743755,3.00131,3331.9,3331.5,0.2]
[1732280743922,3.00147,3331.7,3331.5,0.2]
[1732280744259,0.55,3331.8,3331.5,0.2]
[1732280744445,3.0013,3331.9,3331.5,0.2]
[1732280744629,0.55,3331.8,3331.5,0.2]
[1732280744823,0.55,3332.0,3331.5,0.80032]
[1732280745029,0.55,3331.9,3331.5,0.2]
[1732280745536,3.5512,3332.0,3331.5,0.2]
[1732280746221,0.55,3331.8,3331.6,0.2985]
[1732280746477,3.55147,3331.7,3331.6,0.2985]
[1732280746669,3.55156,3331.6,3331.5,0.2]
[1732280747311,7.06739732,3331.6,3331.5,0.2]
[1732280747480,8.15607405,3331.6,3331.5,0.2]
[1732280748116,0.55,3331.8,3331.5,0.8432]
[1732280748412,7.33461732,3332.4,3331.7,0.60028]
[1732280748592,6.51671732,3332.4,3331.7,0.60028]
[1732280748766,0.30381736,3332.5,3331.8,0.89877]
[1732280748964,0.8179,3332.7,3331.8,0.2985]
[1732280749199,0.8179,3332.7,3332.0,0.2985]
[1732280749376,3.00089,3332.4,3332.0,0.2985]
[1732280749775,0.8179,3332.7,3332.1,0.89872]
[1732280750012,3.00038,3333.0,3332.4,1.29336]
[1732280750224,3.00042,3332.9,3332.4,0.3947]
[1732280750369,3.00038,3333.0,3332.4,0.3947]
[1732280750370,0.03751066,3332.8,3332.4,0.3947]
[1732280750571,3.00045,3332.9,3332.4,0.3947]
[1732280750809,0.03751067,3332.9,3332.4,0.3947]
[1732280751109,0.03750958,3332.8,3332.1,0.9949]
[1732280751293,0.03750958,3332.8,3332.1,0.99491]
[1732280751294,3.00057,3332.7,3332.1,0.99491]
[1732280751493,3.00101,3332.3,3331.8,0.3947]
[1732280751697,3.51583732,3332.8,3331.8,0.3947]
[1732280751698,3.83900411,3332.6,3331.8,0.3947]
[1732280751881,3.00071,3332.6,3331.9,0.60024]
[1732280752085,3.00094,3332.3,3331.8,0.3947]
[1732280752270,3.00112,3332.1,3331.6,0.2985]
[1732280752474,0.03751603,3332.0,3331.6,0.2985]
[1732280752704,3.03871603,3332.0,3331.6,0.2985]
[1732280752908,0.03751603,3332.0,3331.6,0.2985]
[1732280753102,3.00103,3332.2,3331.5,1.14502]
[1732280753103,3.03868676,3332.1,3331.5,1.14502]
[1732280753314,0.55,3331.9,3331.5,0.5447]
[1732280753604,3.55129,3331.9,3331.5,0.5447]
[1732280753805,0.55,3331.7,3331.5,0.15]
[1732280754005,0.03752083,3332.0,3331.5,0.15]
[1732280754310,3.55121,3332.0,3331.5,0.15]
[1732280754487,0.55,3331.8,3331.5,0.15]
[1732280754811,3.55138,3331.8,3331.5,0.15]
[1732280754969,0.55,3331.6,3331.5,0.15]
[1732280755610,3.00148,3331.7,3331.5,0.15]
[1732280755904,3.58908312,3331.6,3331.5,0.15]
[1732280756112,3.55156,3331.6,3331.5,0.15]
[1732280756912,3.58908682,3331.6,3331.5,0.15]
[1732280757287,3.55156,3331.6,3331.5,0.15]
[1732280757606,3.58908681,3331.6,3331.5,0.15]
[1732280757808,4.59972722,3331.6,3331.5,0.15]
[1732280759523,1.59816722,3331.6,3331.5,0.15]
[1732280759699,0.55,3331.8,3331.5,0.15]
[1732280759899,6.00112,3332.1,3331.5,0.15]
[1732280760224,3.0,3332.2,3331.5,0.15]
[1732280760378,6.35267373,3332.2,3331.6,0.2985]
[1732280760721,3.00123,3332.0,3331.6,0.2985]
[1732280761023,3.00143,3331.8,3331.6,0.2985]
[1732280761417,3.00123,3332.0,3331.6,0.2985]
[1732280761709,0.35158373,3332.2,3331.8,0.60025]
[1732280761923,0.7689,3332.5,3331.6,0.2985]
[1732280762083,3.0009,3332.4,3331.8,0.2985]
[1732280762281,3.0009,3332.4,3331.8,0.89877]
[1732280762704,1.67011694,3332.5,3332.0,0.2985]
[1732280762880,0.7689,3332.5,3332.0,0.2985]
[1732280763232,4.00069,3332.6,3332.2,0.2985]
[1732280763233,1.0,3332.6,3332.2,0.2985]
[1732280763519,1.0,3332.6,3332.5,0.60015]
[1732280763888,1.0,3332.6,3332.4,0.2985]
[1732280764079,0.03751137,3332.5,3332.4,0.2985]
[1732280764280,1.0,3332.6,3332.4,0.2985]
[1732280764801,1.0,3332.6,3332.3,0.89867]
[1732280765000,0.0375115,3332.5,3332.3,0.89867]
[1732280765180,1.0,3332.6,3332.4,0.60016]
[1732280765793,0.03751114,3332.5,3332.4,0.60016]
[1732280766032,0.03751114,3332.5,3332.2,0.6002]
[1732280766033,0.03751112,3332.5,3332.2,0.6002]
[1732280766176,0.03751112,3332.5,3331.9,0.3947]
[1732280766393,0.55,3332.5,3332.2,0.60019]
[1732280766596,0.03751434,3332.4,3331.9,0.3947]
[1732280766800,1.0,3332.6,3332.0,0.60022]
[1732280766999,1.0,3332.6,3332.5,0.60015]
[1732280768020,1.0,3332.6,3332.3,0.60017]
[1732280768738,1.0,3332.6,3332.5,0.60015]
[1732280769019,1.0,3332.6,3332.3,0.60017]
[1732280769179,1.0,3332.6,3332.5,0.60015]
[1732280769622,1.0,3332.6,3332.5,0.99485]
[1732280769835,1.0,3332.6,3332.5,1.214368]
[1732280770480,1.0,3332.6,3332.5,0.60015]
[1732280775096,1.0,3332.6,3332.3,0.60016]
[1732280775298,1.0,3332.6,3331.7,0.3947]
[1732280775299,0.55,3332.5,3331.7,0.3947]
[1732280775498,0.55,3332.3,3331.8,0.60026]
[1732280775697,0.55,3332.3,3332.0,0.60023]
[1732280775928,0.55,3332.3,3332.1,0.6002]
[1732280776315,0.55,3332.3,3331.9,0.60025]
[1732280776515,0.55,3332.3,3332.1,0.6002]
[1732280776714,0.55,3332.5,3332.1,0.6002]
[1732280776915,1.2538776,3332.5,3331.9,0.60024]
[1732280777144,4.00066,3332.6,3332.4,0.60015]
[1732280777145,1.0,3332.6,3332.4,0.60015]
[1732280777293,1.0,3332.6,3332.0,0.60023]
[1732280777495,0.03751135,3332.5,3332.3,1.20034]
[1732280777696,1.0,3332.6,3332.3,1.20034]
[1732280777924,0.03751135,3332.5,3332.3,0.60017]
[1732280778128,0.03751135,3332.5,3332.0,0.60023]
[1732280778129,0.55,3332.4,3332.0,0.60023]
[1732280778330,1.3074,3332.2,3331.6,0.6003]
[1732280778511,1.3074,3332.2,3331.5,0.15]
[1732280778512,0.55,3331.9,3331.5,0.15]
[1732280778689,0.03752032,3331.8,3331.5,0.15]
[1732280779034,0.55,3331.7,3331.5,0.15]
[1732280779239,0.58752156,3331.6,3331.5,0.15]
[1732280779442,3.58908156,3331.6,3331.5,0.15]
[1732280779610,7.86231888,3331.6,3331.5,0.15]
[1732280779940,8.91118121,3331.6,3331.5,0.15]
[1732280780296,5.90962121,3331.6,3331.5,0.15]
[1732280780505,0.7574,3331.6,3331.5,0.15]
[1732280781037,3.79628429,3331.9,3331.5,0.15]
[1732280781239,0.7574,3331.9,3331.5,0.15]
[1732280781395,3.7731,3332.3,3331.7,0.60027]
[1732280781596,0.300097,3332.2,3331.8,0.60026]
[1732280781835,0.7731,3332.3,3331.9,0.60025]
[1732280782004,0.7731,3332.3,3332.0,0.60023]
[1732280782209,3.51583732,3332.4,3331.9,0.60025]
[1732280782446,1.0,3332.6,3331.6,0.60029]
[1732280782741,1.0,3332.6,3332.2,0.60018]
[1732280783048,1.0,3332.6,3332.5,0.60015]
[1732280783231,1.0,3332.6,3332.5,0.99485]
[1732280783591,3.51583732,3333.2,3332.1,0.3947]
[1732280783592,3.55334639,3333.2,3332.1,0.3947]
[1732280783943,0.8157,3333.0,3332.8,0.60008]
[1732280784442,0.65533764,3333.1,3332.8,0.60008]
[1732280784734,0.65533764,3333.1,3332.9,0.60007]
[1732280784935,0.65533764,3333.1,3332.8,0.60008]
[1732280785440,0.65533764,3333.1,3332.6,0.60012]
[1732280785732,0.65533764,3333.1,3332.4,0.60016]
[1732280785733,0.45462458,3333.0,3332.5,0.60014]
[1732280785939,3.45492458,3333.0,3332.4,0.60015]
[1732280786310,3.51583732,3332.8,3332.0,0.60023]
[1732280786612,3.51583732,3332.4,3331.8,0.60026]
[1732280786942,0.03751666,3332.3,3331.7,0.60027]
[1732280787098,3.6564954,3332.2,3331.6,0.6003]
[1732280787304,3.51583732,3332.0,3331.5,0.15]
[1732280787499,0.0375198,3331.9,3331.5,0.15]
[1732280787699,0.8143,3331.8,3331.5,0.15]
[1732280788335,3.51583732,3331.6,3331.5,0.15]
[1732280789007,0.8143,3331.8,3331.5,0.75031]
[1732280789513,0.7504,3332.2,3331.7,0.60029]
[1732280789838,0.7504,3332.2,3331.9,0.60024]
[1732280790352,0.7504,3332.2,3331.9,0.2985]
[1732280790638,0.8194,3333.0,3332.5,0.60014]
[1732280790797,3.51583732,3333.2,3332.7,0.6001]
[1732280791006,3.51583732,3333.2,3332.9,0.60007]
[1732280791311,0.45158373,3333.1,3332.8,0.89859]
[1732280791527,0.45158373,3333.1,3332.8,0.2985]
[1732280791905,0.03750808,3333.0,3332.6,0.60013]
[1732280792266,1.0,3333.3,3332.9,0.89857]
[1732280792397,0.77,3333.7,3333.4,0.59997]
[1732280792600,4.28583732,3334.1,3333.6,0.89845]
[1732280792803,4.93735505,3334.1,3333.7,0.89843]
[1732280793043,0.65151773,3334.1,3333.7,0.2985]
[1732280793397,0.7785,3334.4,3333.9,0.59988]
[1732280793755,0.7894,3334.8,3334.2,0.59983]
[1732280793898,3.82562167,3334.8,3334.2,0.89833]
[1732280794099,2.99877,3334.7,3334.2,0.2985]
[1732280794299,2.99889,3334.6,3334.2,0.2985]
[1732280794535,0.68245517,3334.5,3334.2,0.2985]
[1732280795035,2.99894,3334.6,3334.1,0.2985]
[1732280795241,6.51485732,3334.5,3333.8,0.5999]
[1732280795545,0.95136773,3334.4,3334.0,0.59987]
[1732280795710,0.95136773,3334.4,3334.1,0.59985]
[1732280795907,0.95136773,3334.4,3333.9,0.59989]
[1732280796111,3.51583732,3334.1,3333.7,0.59993]
[1732280796460,0.0374959,3334.0,3333.7,0.59993]
[1732280796654,0.0374959,3334.0,3333.5,0.59996]
[1732280796941,0.0374959,3334.0,3333.2,0.60002]
[1732280796942,2.99961,3333.8,3333.2,0.60002]
[1732280797111,3.55333639,3333.7,3333.2,0.60002]
[1732280797312,3.51583732,3333.3,3332.9,0.60007]
[1732280797521,0.03750335,3333.2,3332.9,0.60007]
[1732280797854,0.39283742,3333.2,3332.9,0.60007]
[1732280798054,0.39283742,3333.2,3332.8,0.60009]
[1732280798544,0.39283742,3333.2,3333.0,0.60004]
[1732280798716,0.35533407,3333.2,3332.9,0.60006]
[1732280798912,0.38711714,3333.1,3332.5,0.60014]
[1732280799116,3.51583732,3332.9,3332.3,0.3947]
[1732280799349,0.03750795,3332.8,3332.3,0.60016]
[1732280799560,3.03798795,3332.8,3332.1,0.60022]
[1732280799725,3.43620453,3332.7,3332.0,0.60023]
[1732280800055,6.51663732,3332.5,3331.9,0.60024]
[1732280800354,6.51663732,3332.5,3331.8,0.60027]
[1732280800355,0.03751313,3332.4,3331.8,0.60027]
[1732280800520,3.00094,3332.3,3331.7,0.60027]
[1732280800720,0.03751571,3332.2,3331.7,0.60027]
[1732280800926,0.03751571,3332.2,3331.5,0.75032]
[1732280800927,0.84051571,3332.2,3331.5,0.15]
[1732280801129,0.803,3332.0,3331.5,0.15]
[1732280801476,3.51583732,3331.7,3331.5,0.15]
[1732280802113,3.00156,3331.6,3331.5,0.15]
[1732280802760,3.51583732,3331.7,3331.5,0.15]
[1732280802965,7.16903605,3331.7,3331.5,0.15]
[1732280804074,3.51583732,3331.7,3331.5,0.15]
[1732280804374,0.803,3332.0,3331.5,0.15]
[1732280804375,3.80421,3332.0,3331.5,0.15]
[1732280804670,3.80421,3332.0,3331.5,0.75033]
[1732280804671,0.803,3332.0,3331.5,0.75033]
[1732280804964,0.803,3332.0,3331.5,0.15]
[1732280805180,0.8064533,3331.9,3331.5,0.15]
[1732280805326,3.00145,3331.8,3331.5,0.15]
[1732280805529,3.00156,3331.6,3331.5,0.15]
[1732280805753,0.03752452,3331.6,3331.5,0.15]
[1732280805964,3.00149,3331.7,3331.5,0.15]
[1732280806163,3.00077,3332.5,3331.6,0.3947]
[1732280806429,3.00099,3332.3,3331.6,0.3947]
[1732280806851,3.00099,3332.3,3331.7,0.60029]
[1732280807074,3.60491776,3332.3,3331.6,0.3947]
[1732280807271,3.00108,3332.2,3331.6,0.3947]
[1732280807567,0.03751762,3332.1,3331.6,0.99501]
[1732280807742,3.40288016,3332.1,3331.5,0.15]
[1732280807941,0.40177016,3332.1,3331.5,0.75031]
[1732280808474,0.03751762,3332.1,3331.5,0.75031]
[1732280808780,0.03751762,3332.1,3331.6,0.60031]
[1732280808937,3.00121,3332.0,3331.5,0.15]